fUSD/lending_fUSD_20250113
["ID","MTS","AMOUNT","RATE_DAILY","PERIOD"]
[348808174,1736789486691,-500.0,0.00012737,2]
[348808175,1736789486700,-1506.6,0.00012738,2]
[348808176,1736789486711,-1460.16,0.00012738,2]
[348808177,1736789486721,-872.27,0.00012738,2]
[348808178,1736789486731,-1766.08,0.00012738,2]
[348808179,1736789486741,-5849.77,0.00012738,2]
[348808180,1736789486751,-151.0,0.00012739,2]
[348808181,1736789486760,-1040.0,0.0001277,7]
[348808182,1736789486770,-356.67373344,0.00012813,2]
[348808183,1736789486780,-173.67,0.00012843,2]
[348808184,1736789486790,-620.3,0.00012869,2]
[348808185,1736789486800,-500.0,0.00012869,2]
[348808186,1736789486810,-500.0,0.00012869,2]
[348808187,1736789486820,-500.0,0.00012869,2]
[348808188,1736789486830,-500.0,0.00012869,2]
[348808189,1736789486839,-500.0,0.00012869,2]
[348808190,1736789486849,-500.0,0.00012869,2]
[348808191,1736789486859,-500.0,0.00012869,2]
[348808192,1736789486869,-500.0,0.00012869,2]
[348808193,1736789486879,-500.0,0.00012869,2]
[348808194,1736789486890,-500.0,0.00012869,2]
[348808195,1736789486899,-500.0,0.00012869,2]
[348808196,1736789486910,-500.0,0.00012869,2]
[348808197,1736789486920,-500.0,0.00012869,2]
[348808198,1736789486932,-563.0,0.00012869,2]
[348808199,1736789486942,-500.0,0.00012869,2]
[348808200,1736789486952,-500.0,0.00012869,2]
[348808201,1736789486961,-500.0,0.00012869,2]
[348808202,1736789486971,-500.0,0.00012869,2]
[348808203,1736789486981,-500.0,0.00012869,2]
[348808204,1736789486990,-500.0,0.00012869,2]
[348808205,1736789486999,-500.0,0.00012869,2]
[348808206,1736789487008,-500.0,0.00012869,2]
[348808207,1736789487018,-500.0,0.00012869,2]
[348808208,1736789487027,-500.0,0.00012869,2]
[348808209,1736789487036,-500.0,0.00012869,2]
[348808210,1736789487046,-500.0,0.00012869,2]
[348808211,1736789487055,-500.0,0.00012869,2]
[348808212,1736789487065,-500.0,0.00012869,2]
[348808213,1736789487074,-500.0,0.00012869,2]
[348808214,1736789487084,-500.0,0.00012869,2]
[348808215,1736789487093,-500.0,0.00012869,2]
[348808216,1736789487104,-500.0,0.00012869,2]
[348808217,1736789487113,-500.0,0.00012869,2]
[348808218,1736789487123,-500.0,0.00012869,2]
[348808219,1736789487133,-500.0,0.00012869,2]
[348808220,1736789487143,-500.0,0.00012869,2]
[348808221,1736789487152,-500.0,0.00012869,2]
[348808222,1736789487162,-500.0,0.00012869,2]
[348808223,1736789487171,-500.0,0.00012869,2]
[348808224,1736789487184,-500.0,0.00012869,2]
[348808225,1736789487194,-500.0,0.00012869,2]
[348808226,1736789487203,-500.0,0.00012869,2]
[348808227,1736789487213,-500.0,0.00012869,2]
[348808228,1736789487223,-500.0,0.00012869,2]
[348808229,1736789487232,-500.0,0.00012869,2]
[348808230,1736789487247,-500.0,0.00012869,2]
[348808231,1736789487257,-500.0,0.00012869,2]
[348808232,1736789487267,-500.0,0.00012869,2]
[348808233,1736789487277,-500.0,0.00012869,2]
[348808234,1736789487288,-500.0,0.00012869,2]
[348808235,1736789487297,-500.0,0.00012869,2]
[348808236,1736789487307,-500.0,0.00012869,2]
[348808237,1736789487320,-500.0,0.00012869,2]
[348808238,1736789487330,-500.0,0.00012869,2]
[348808239,1736789487340,-500.0,0.00012869,2]
[348808240,1736789487349,-500.0,0.00012869,2]
[348808241,1736789487360,-500.0,0.00012869,2]
[348808242,1736789487370,-500.0,0.00012869,2]
[348808243,1736789487380,-500.0,0.00012869,2]
[348808244,1736789487390,-500.0,0.00012869,2]
[348808245,1736789487399,-500.0,0.00012869,2]
[348808246,1736789487410,-500.0,0.00012869,2]
[348808247,1736789487420,-500.0,0.00012869,2]
[348808248,1736789487432,-500.0,0.00012869,2]
[348808249,1736789487443,-500.0,0.00012869,2]
[348808250,1736789487452,-500.0,0.00012869,2]
[348808251,1736789487462,-500.0,0.00012869,2]
[348808252,1736789487472,-500.0,0.00012869,2]
[348808253,1736789487482,-500.0,0.00012869,2]
[348808254,1736789487492,-500.0,0.00012869,2]
[348808255,1736789487501,-500.0,0.00012869,2]
[348808256,1736789487514,-500.0,0.00012869,2]
[348808257,1736789487524,-500.0,0.00012869,2]
[348808258,1736789487535,-500.0,0.00012869,2]
[348808259,1736789487544,-500.0,0.00012869,2]
[348808260,1736789487554,-500.0,0.00012869,2]
[348808261,1736789487564,-500.0,0.00012869,2]
[348808262,1736789487573,-500.0,0.00012869,2]
[348808263,1736789487582,-500.0,0.00012869,2]
[348808264,1736789487592,-500.0,0.00012869,2]
[348808265,1736789487602,-500.0,0.00012869,2]
[348808266,1736789487612,-500.0,0.00012869,2]
[348808267,1736789487622,-500.0,0.00012869,2]
[348808268,1736789487631,-500.0,0.00012869,2]
[348808269,1736789487641,-500.0,0.00012869,2]
[348808270,1736789487650,-500.0,0.00012869,2]
[348808271,1736789487660,-500.0,0.00012869,2]
[348808272,1736789487670,-500.0,0.00012869,2]
[348808273,1736789487679,-500.0,0.00012869,2]
[348808274,1736789487693,-500.0,0.00012869,2]
[348808275,1736789487702,-500.0,0.00012869,2]
[348808276,1736789487712,-500.0,0.00012869,2]
[348808277,1736789487721,-500.0,0.00012869,2]
[348808278,1736789487731,-500.0,0.00012869,2]
[348808279,1736789487740,-500.0,0.00012869,2]
[348808280,1736789487750,-500.0,0.00012869,2]
[348808281,1736789487759,-500.0,0.00012869,2]
[348808282,1736789487769,-500.0,0.00012869,2]
[348808283,1736789487779,-500.0,0.00012869,2]
[348808284,1736789487789,-500.0,0.00012869,2]
[348808285,1736789487798,-500.0,0.00012869,2]
[348808286,1736789487808,-500.0,0.00012869,2]
[348808287,1736789487817,-500.0,0.00012869,2]
[348808288,1736789487827,-500.0,0.00012869,2]
[348808289,1736789487836,-500.0,0.00012869,2]
[348808290,1736789487846,-500.0,0.00012869,2]
[348808291,1736789487855,-500.0,0.00012869,2]
[348808292,1736789487865,-500.0,0.00012869,2]
[348808293,1736789487875,-500.0,0.00012869,2]
[348808294,1736789487887,-500.0,0.00012869,2]
[348808295,1736789487897,-500.0,0.00012869,2]
[348808296,1736789487906,-500.0,0.00012869,2]
[348808297,1736789487916,-500.0,0.00012869,2]
[348808298,1736789487926,-500.0,0.00012869,2]
[348808299,1736789487939,-500.0,0.00012869,2]
[348808300,1736789487948,-500.0,0.00012869,2]
[348808301,1736789487958,-500.0,0.00012869,2]
[348808302,1736789487967,-500.0,0.00012869,2]
[348808303,1736789487977,-500.0,0.00012869,2]
[348808304,1736789487987,-500.0,0.00012869,2]
[348808305,1736789487997,-500.0,0.00012869,2]
[348808306,1736789488006,-500.0,0.00012869,2]
[348808307,1736789488016,-500.0,0.00012869,2]
[348808308,1736789488025,-500.0,0.00012869,2]
[348808309,1736789488034,-500.0,0.00012869,2]
[348808310,1736789488044,-500.0,0.00012869,2]
[348808311,1736789488053,-500.0,0.00012869,2]
[348808312,1736789488063,-500.0,0.00012869,2]
[348808313,1736789488072,-500.0,0.00012869,2]
[348808314,1736789488081,-500.0,0.00012869,2]
[348808315,1736789488091,-500.0,0.00012869,2]
[348808316,1736789488100,-541.0,0.00012869,2]
[348808317,1736789488110,-500.0,0.00012874,2]
[348808318,1736789488120,-2256.21,0.00012876,2]
[348808319,1736789488129,-500.0,0.00012876,2]
[348808320,1736789488139,-1200.0,0.00012876,2]
[348808321,1736789488149,-1200.0,0.00012876,2]
[348808322,1736789488159,-1200.0,0.00012876,2]
[348808323,1736789488168,-1200.0,0.00012876,2]
[348808324,1736789488178,-1200.0,0.00012876,2]
[348808325,1736789488193,-250.98,0.00012877,2]
[348808326,1736789488202,-202.23076678,0.000129,2]
[348808327,1736789488212,-201.0,0.0001294,2]
[348808328,1736789488222,-524.87,0.00012984,2]
[348808329,1736789488232,-1706.58,0.00012984,2]
[348808330,1736789488245,-564.29,0.00012984,2]
[348808331,1736789488255,-728.34,0.00012984,2]
[348808332,1736789488265,-500.0,0.00012995,2]
[348808333,1736789488274,-300.0,0.00012999,2]
[348808334,1736789488283,-437.0,0.00013,2]
[348808335,1736789488292,-250.0,0.00013,10]
[348808336,1736789488302,-3500.0,0.00013,2]
[348808337,1736789488313,-4228.11933308,0.00013,2]
[348808338,1736789488323,-30000.0,0.00013,2]
[348808339,1736789488332,-30000.0,0.00013,2]
[348808340,1736789488342,-30000.0,0.00013,2]
[348808341,1736789488352,-2365.24219154,0.00013,2]
[348808342,1736789488361,-2564.97987534,0.00013,2]
[348808343,1736789488371,-3258.21117493,0.00013,2]
[348808344,1736789488380,-1200.5533617,0.00013,5]
[348808345,1736789488390,-600.0,0.00013,4]
[348808346,1736789488399,-498.33259386,0.00013,5]
[348808347,1736789488409,-679.706994,0.00013,2]
[348808348,1736789488418,-679.706994,0.00013,2]
[348808349,1736789488429,-600.0,0.00013,2]
[348808350,1736789488442,-500.0,0.00013009,2]
[348808351,1736789488451,-500.0,0.00013009,2]
[348808352,1736789488462,-500.0,0.00013009,2]
[348808353,1736789488471,-500.0,0.00013009,2]
[348808354,1736789488481,-1887.52,0.00013009,2]
[348808355,1736789488490,-500.0,0.00013009,2]
[348808356,1736789488500,-506.91,0.00013009,2]
[348808357,1736789488511,-500.0,0.00013009,2]
[348808358,1736789488520,-199.7,0.00013009,2]
[348808359,1736789488530,-500.0,0.00013009,2]
[348808360,1736789488540,-304.85926483,0.0001301,2]
[348808361,1736789488551,-515.03,0.0001301,2]
[348808362,1736789488561,-641.14,0.0001301,2]
[348808363,1736789488571,-550.42,0.0001301,2]
[348808364,1736789488583,-184.2072961,0.0001301,2]
[348808365,1736789488593,-500.0,0.0001301,2]
[348808366,1736789488603,-500.0,0.0001301,2]
[348808367,1736789488612,-198.76,0.0001301,2]
[348808368,1736789488623,-519.61,0.0001301,2]
[348808369,1736789488632,-500.0,0.0001301,2]
[348808370,1736789488642,-504.63,0.0001301,2]
[348808371,1736789488652,-752.85,0.0001301,2]
[348808372,1736789488662,-500.0,0.0001301,2]
[348808373,1736789488672,-937.69,0.0001301,2]
[348808374,1736789488686,-748.27,0.0001301,2]
[348808375,1736789488695,-500.0,0.0001301,2]
[348808376,1736789488705,-919.9,0.0001301,2]
[348808377,1736789488715,-766.36,0.0001301,2]
[348808378,1736789488725,-831.27,0.0001301,2]
[348808379,1736789488735,-652.15,0.0001301,2]
[348808380,1736789488744,-1618.06,0.0001301,2]
[348808381,1736789488754,-503.86,0.0001301,2]
[348808382,1736789488764,-500.0,0.0001301,2]
[348808383,1736789488775,-738.35,0.0001301,2]
[348808384,1736789488786,-602.52,0.0001301,2]
[348808385,1736789488796,-704.36,0.0001301,2]
[348808386,1736789488807,-805.11,0.0001301,2]
[348808387,1736789488817,-599.92,0.0001301,2]
[348808388,1736789488827,-1474.42,0.0001301,2]
[348808389,1736789488837,-5242.15,0.0001301,2]
[348808390,1736789488847,-1194.18,0.0001301,2]
[348808391,1736789488857,-602.8,0.0001301,2]
[348808392,1736789488870,-596.47,0.0001301,2]
[348808393,1736789488880,-2360.29,0.0001301,2]
[348808394,1736789488891,-151.0,0.0001301,2]
[348808395,1736789488901,-1352.23,0.0001301,2]
[348808396,1736789488911,-893.39,0.0001301,2]
[348808397,1736789488921,-500.0,0.0001301,2]
[348808398,1736789488934,-1603.75,0.0001301,2]
[348808399,1736789488944,-167.976616,0.0001301,2]
[348808400,1736789488954,-500.0,0.0001301,2]
[348808401,1736789488964,-500.0,0.0001301,2]
[348808402,1736789488974,-500.0,0.0001301,2]
[348808403,1736789488984,-1295.57,0.0001301,2]
[348808404,1736789488994,-2161.69,0.0001301,2]
[348808405,1736789489006,-1828.01,0.0001301,2]
[348808406,1736789489016,-500.0,0.0001301,2]
[348808407,1736789489026,-1024.72,0.0001301,2]
[348808408,1736789489036,-3242.95,0.0001301,2]
[348808409,1736789489202,-541.15,0.0001301,2]
[348808410,1736789489217,-525.71881849,0.0001301,2]
[348808411,1736789489228,-962.13,0.0001301,2]
[348808412,1736789489239,-977.39,0.0001301,2]
[348808413,1736789489251,-3349.73,0.0001301,2]
[348808414,1736789489261,-1792.63,0.0001301,2]
[348808415,1736789489271,-755.384315,0.0001301,2]
[348808416,1736789489280,-1992.33,0.0001301,2]
[348808417,1736789489290,-898.56,0.0001301,2]
[348808418,1736789489300,-269.55,0.0001301,2]
[348808419,1736789489310,-573.54,0.0001301,2]
[348808420,1736789489322,-2892.25,0.0001301,2]
[348808421,1736789489331,-562.095232,0.0001301,2]
[348808422,1736789489341,-500.0,0.0001301,2]
[348808423,1736789489350,-692.69,0.0001301,2]
[348808424,1736789489360,-2613.03,0.0001301,2]
[348808425,1736789489370,-720.13,0.0001301,2]
[348808426,1736789489380,-732.19,0.0001301,2]
[348808427,1736789489389,-1361.66,0.0001301,2]
[348808428,1736789489399,-166.796717,0.0001301,2]
[348808429,1736789489410,-1022.89,0.0001301,2]
[348808430,1736789489419,-568.68,0.0001301,2]
[348808431,1736789489429,-166.796717,0.0001301,2]
[348808432,1736789489441,-626.77,0.0001301,2]
[348808433,1736789489451,-606.7,0.0001301,2]
[348808434,1736789489460,-500.0,0.0001301,2]
[348808435,1736789489469,-500.0,0.0001301,2]
[348808436,1736789489479,-573.82,0.0001301,2]
[348808437,1736789489489,-1699.69,0.0001301,2]
[348808438,1736789489500,-500.0,0.0001301,2]
[348808439,1736789489510,-172.186315,0.0001301,2]
[348808440,1736789489521,-500.0,0.00013011,2]
[348808441,1736789489531,-500.0,0.00013011,2]
[348808442,1736789489540,-151.0,0.00013011,2]
[348808443,1736789489550,-1255.89,0.00013011,2]
[348808444,1736789489559,-961.31,0.00013011,2]
[348808445,1736789489568,-2512.37,0.00013011,2]
[348808446,1736789489577,-1325.84,0.00013011,2]
[348808447,1736789489587,-1827.85,0.00013011,2]
[348808448,1736789489597,-3096.14,0.00013011,2]
[348808449,1736789489607,-1519.79,0.00013011,2]
[348808450,1736789489616,-3417.73,0.00013011,2]
[348808451,1736789489627,-789.75,0.00013011,2]
[348808452,1736789489637,-552.14,0.00013011,2]
[348808453,1736789489647,-500.0,0.00013011,2]
[348808454,1736789489658,-936.68,0.00013011,2]
[348808455,1736789489668,-548.55,0.00013011,2]
[348808456,1736789489678,-917.73,0.00013011,2]
[348808457,1736789489691,-618.14,0.00013011,2]
[348808458,1736789489701,-650.64,0.00013011,2]
[348808459,1736789489715,-1418.5,0.00013011,2]
[348808460,1736789489733,-500.0,0.00013011,2]
[348808461,1736789489743,-500.0,0.00013011,2]
[348808462,1736789489752,-742.14,0.00013011,2]
[348808463,1736789489761,-1130.8,0.00013011,2]
[348808464,1736789489771,-697.9,0.00013011,2]
[348808465,1736789489781,-759.61,0.00013011,2]
[348808466,1736789489790,-500.0,0.00013011,2]
[348808467,1736789489800,-168.46,0.00013011,2]
[348808468,1736789489811,-757.35,0.00013011,2]
[348808469,1736789489821,-2741.02,0.00013011,2]
[348808470,1736789489831,-503.17,0.00013011,2]
[348808471,1736789489841,-703.48,0.00013011,2]
[348808472,1736789489851,-1444.04,0.00013011,2]
[348808473,1736789489861,-718.2,0.00013011,2]
[348808474,1736789489872,-589.58,0.00013011,2]
[348808475,1736789489882,-3579.12,0.00013011,2]
[348808476,1736789489893,-500.0,0.00013011,2]
[348808477,1736789489903,-689.6,0.00013011,2]
[348808478,1736789489912,-1062.35,0.00013011,2]
[348808479,1736789489922,-1023.71,0.00013011,2]
[348808480,1736789489934,-629.07,0.00013011,2]
[348808481,1736789489944,-722.38,0.00013011,2]
[348808482,1736789489955,-564.7,0.00013011,2]
[348808483,1736789489965,-768.6,0.00013011,2]
[348808484,1736789489976,-500.0,0.00013011,2]
[348808485,1736789489987,-682.62,0.00013011,2]
[348808486,1736789489996,-4003.4,0.00013011,2]
[348808487,1736789490006,-500.0,0.00013011,2]
[348808488,1736789490015,-500.0,0.00013011,2]
[348808489,1736789490025,-716.85,0.00013011,2]
[348808490,1736789490035,-1020.95,0.00013011,2]
[348808491,1736789490045,-680.17,0.00013011,2]
[348808492,1736789490055,-335.3,0.00013011,2]
[348808493,1736789490064,-661.97,0.00013011,2]
[348808494,1736789490075,-976.49,0.00013011,2]
[348808495,1736789490087,-752.64,0.00013011,2]
[348808496,1736789490098,-714.39,0.00013011,2]
[348808497,1736789490108,-780.26,0.00013011,2]
[348808498,1736789490119,-584.45,0.00013011,2]
[348808499,1736789490128,-699.85,0.00013011,2]
[348808500,1736789490138,-500.0,0.00013011,2]
[348808501,1736789490147,-174.267797,0.00013012,2]
[348808502,1736789490159,-174.267797,0.00013012,2]
[348808503,1736789490170,-151.0,0.00013012,2]
[348808504,1736789490180,-420.355625,0.00013012,2]
[348808505,1736789490193,-420.355625,0.00013012,2]
[348808506,1736789490204,-1506.6,0.00013012,2]
[348808507,1736789490217,-1460.16,0.00013012,2]
[348808508,1736789490228,-872.27,0.00013012,2]
[348808509,1736789490239,-1766.08,0.00013012,2]
[348808510,1736789490250,-5849.77,0.00013012,2]
[348808511,1736789490260,-5105.32806222,0.0001305,2]
[348808512,1736789490270,-10001.94174111,0.00013088,2]
[348808513,1736789490282,-255.8,0.00013135,2]
[348808514,1736789490291,-500.0,0.00013148,2]
[348808515,1736789490301,-2256.21,0.0001315,2]
[348808516,1736789490312,-207.22516699,0.0001315,2]
[348808517,1736789490323,-999.0,0.0001315,4]
[348808518,1736789490333,-1870.8,0.0001318,2]
[348808519,1736789490343,-150.0,0.0001318,2]
[348808520,1736789490354,-300.66,0.0001318,2]
[348808521,1736789490364,-437.23,0.0001318,2]
[348808522,1736789490374,-980.19,0.0001318,2]
[348808523,1736789490384,-151.76,0.0001318,2]
[348808524,1736789490395,-300.0,0.0001318,2]
[348808525,1736789490405,-150.0,0.0001318,2]
[348808526,1736789490415,-300.0,0.0001318,2]
[348808527,1736789490425,-980.19,0.0001318,2]
[348808528,1736789490438,-437.23,0.0001318,2]
[348808529,1736789490448,-300.0,0.0001318,2]
[348808530,1736789490457,-1959.38,0.0001318,2]
[348808531,1736789490468,-162.05,0.00013229,2]
[348808532,1736789490477,-150.0,0.00013229,2]
[348808533,1736789490487,-150.0,0.00013229,2]
[348808534,1736789490496,-150.0,0.00013229,2]
[348808535,1736789490507,-150.0,0.00013229,2]
[348808536,1736789490516,-150.0,0.00013229,2]
[348808537,1736789490527,-300.0,0.00013229,2]
[348808538,1736789490537,-150.0,0.00013229,2]
[348808539,1736789490547,-524.87,0.00013258,2]
[348808540,1736789490557,-1706.58,0.00013258,2]
[348808541,1736789490567,-564.29,0.00013258,2]
[348808542,1736789490578,-728.34,0.00013258,2]
[348808543,1736789490588,-500.0,0.00013267,2]
[348808544,1736789490598,-500.0,0.00013267,2]
[348808545,1736789490608,-462.25,0.00013267,2]
[348808546,1736789490618,-462.25,0.00013267,2]
[348808547,1736789490628,-156.915755,0.00013267,2]
[348808548,1736789490640,-156.915755,0.00013267,2]
[348808549,1736789490650,-500.0,0.00013269,2]
[348808550,1736789490661,-500.0,0.00013283,2]
[348808551,1736789490671,-500.0,0.00013283,2]
[348808552,1736789490682,-500.0,0.00013283,2]
[348808553,1736789490699,-228.0619286,0.00013283,2]
[348808554,1736789490709,-1887.52,0.00013283,2]
[348808555,1736789490718,-500.0,0.00013283,2]
[348808556,1736789490729,-506.91,0.00013283,2]
[348808557,1736789490739,-500.0,0.00013283,2]
[348808558,1736789490748,-500.0,0.00013283,2]
[348808559,1736789490759,-515.03,0.00013284,2]
[348808560,1736789490768,-641.14,0.00013284,2]
[348808561,1736789490780,-550.42,0.00013284,2]
[348808562,1736789490791,-500.0,0.00013284,2]
[348808563,1736789490801,-500.0,0.00013284,2]
[348808564,1736789490810,-519.61,0.00013284,2]
[348808565,1736789490820,-500.0,0.00013284,2]
[348808566,1736789490830,-504.63,0.00013284,2]
[348808567,1736789490840,-752.85,0.00013284,2]
[348808568,1736789490851,-500.0,0.00013284,2]
[348808569,1736789490862,-937.69,0.00013284,2]
[348808570,1736789490873,-748.27,0.00013284,2]
[348808571,1736789490883,-524.91,0.00013284,2]
[348808572,1736789490895,-919.9,0.00013284,2]
[348808573,1736789490905,-766.36,0.00013284,2]
[348808574,1736789490915,-831.27,0.00013284,2]
[348808575,1736789490924,-652.15,0.00013284,2]
[348808576,1736789490938,-1618.06,0.00013284,2]
[348808577,1736789490947,-503.86,0.00013284,2]
[348808578,1736789490957,-500.0,0.00013284,2]
[348808579,1736789490967,-738.35,0.00013284,2]
[348808580,1736789490977,-602.52,0.00013284,2]
[348808581,1736789490987,-704.36,0.00013284,2]
[348808582,1736789490997,-805.11,0.00013284,2]
[348808583,1736789491007,-599.92,0.00013284,2]
[348808584,1736789491017,-1474.42,0.00013284,2]
[348808585,1736789491027,-5242.15,0.00013284,2]
[348808586,1736789491037,-1194.18,0.00013284,2]
[348808587,1736789491046,-602.8,0.00013284,2]
[348808588,1736789491056,-596.47,0.00013284,2]
[348808589,1736789491066,-2360.29,0.00013284,2]
[348808590,1736789491076,-1352.23,0.00013284,2]
[348808591,1736789491085,-893.39,0.00013284,2]
[348808592,1736789491096,-552.35601233,0.00013284,2]
[348808593,1736789491106,-1603.75,0.00013284,2]
[348808594,1736789491116,-500.0,0.00013284,2]
[348808595,1736789491126,-500.0,0.00013284,2]
[348808596,1736789491135,-500.0,0.00013284,2]
[348808597,1736789491145,-1295.57,0.00013284,2]
[348808598,1736789491155,-2161.69,0.00013284,2]
[348808599,1736789491164,-1828.01,0.00013284,2]
[348808600,1736789491174,-214.49109222,0.00013284,2]
[348808601,1736789491186,-1024.72,0.00013284,2]
[348808602,1736789491196,-3242.95,0.00013284,2]
[348808603,1736789491206,-541.15,0.00013284,2]
[348808604,1736789491216,-962.13,0.00013284,2]
[348808605,1736789491226,-977.39,0.00013284,2]
[348808606,1736789491236,-3349.73,0.00013284,2]
[348808607,1736789491250,-1792.63,0.00013284,2]
[348808608,1736789491260,-755.384315,0.00013284,2]
[348808609,1736789491270,-1992.33,0.00013284,2]
[348808610,1736789491279,-898.56,0.00013284,2]
[348808611,1736789491289,-573.54,0.00013284,2]
[348808612,1736789491299,-2892.25,0.00013284,2]
[348808613,1736789491310,-562.095232,0.00013284,2]
[348808614,1736789491321,-500.0,0.00013284,2]
[348808615,1736789491332,-692.69,0.00013284,2]
[348808616,1736789491342,-2613.03,0.00013284,2]
[348808617,1736789491352,-720.13,0.00013284,2]
[348808618,1736789491361,-732.19,0.00013284,2]
[348808619,1736789491372,-1361.66,0.00013284,2]
[348808620,1736789491381,-1022.89,0.00013284,2]
[348808621,1736789491391,-568.68,0.00013284,2]
[348808622,1736789491400,-626.77,0.00013284,2]
[348808623,1736789491467,-606.7,0.00013284,2]
[348808624,1736789491477,-500.0,0.00013284,2]
[348808625,1736789491487,-500.0,0.00013284,2]
[348808626,1736789491497,-573.82,0.00013284,2]
[348808627,1736789491507,-1699.69,0.00013284,2]
[348808628,1736789491517,-500.0,0.00013284,2]
[348808629,1736789491526,-500.0,0.00013285,2]
[348808630,1736789491535,-500.0,0.00013285,2]
[348808631,1736789491544,-1255.89,0.00013285,2]
[348808632,1736789491554,-961.31,0.00013285,2]
[348808633,1736789491564,-2512.37,0.00013285,2]
[348808634,1736789491574,-1325.84,0.00013285,2]
[348808635,1736789491583,-1827.85,0.00013285,2]
[348808636,1736789491593,-3096.14,0.00013285,2]
[348808637,1736789491604,-1519.79,0.00013285,2]
[348808638,1736789491614,-3417.73,0.00013285,2]
[348808639,1736789491624,-789.75,0.00013285,2]
[348808640,1736789491634,-552.14,0.00013285,2]
[348808641,1736789491645,-500.0,0.00013285,2]
[348808642,1736789491654,-936.68,0.00013285,2]
[348808643,1736789491664,-548.55,0.00013285,2]
[348808644,1736789491674,-917.73,0.00013285,2]
[348808645,1736789491686,-618.14,0.00013285,2]
[348808646,1736789491696,-650.64,0.00013285,2]
[348808647,1736789491706,-1418.5,0.00013285,2]
[348808648,1736789491716,-500.0,0.00013285,2]
[348808649,1736789491727,-500.0,0.00013285,2]
[348808650,1736789491737,-742.14,0.00013285,2]
[348808651,1736789491747,-1130.8,0.00013285,2]
[348808652,1736789491756,-697.9,0.00013285,2]
[348808653,1736789491766,-759.61,0.00013285,2]
[348808654,1736789491775,-500.0,0.00013285,2]
[348808655,1736789491785,-757.35,0.00013285,2]
[348808656,1736789491794,-2741.02,0.00013285,2]
[348808657,1736789491805,-703.48,0.00013285,2]
[348808658,1736789491814,-1444.04,0.00013285,2]
[348808659,1736789491824,-718.2,0.00013285,2]
[348808660,1736789491833,-589.58,0.00013285,2]
[348808661,1736789491843,-3579.12,0.00013285,2]
[348808662,1736789491853,-500.0,0.00013285,2]
[348808663,1736789491864,-689.6,0.00013285,2]
[348808664,1736789491874,-1062.35,0.00013285,2]
[348808665,1736789491884,-1023.71,0.00013285,2]
[348808666,1736789491894,-629.07,0.00013285,2]
[348808667,1736789491903,-722.38,0.00013285,2]
[348808668,1736789491913,-564.7,0.00013285,2]
[348808669,1736789491922,-768.6,0.00013285,2]
[348808670,1736789491931,-269.13485788,0.00013285,2]
[348808671,1736789491943,-682.62,0.00013285,2]
[348808672,1736789491953,-4003.4,0.00013285,2]
[348808673,1736789491963,-500.0,0.00013285,2]